{"text_format":"3","workbook":"xlsx","n_sheets":2,"sheets":["Sheet1","Sheet2"],"not_rendered":{"defined_names":3},"read":"whole","date_system":"1900"}

{"sheet":"Sheet1","index":0,"n_rows":253,"n_cols":10,"rows_kept":253,"merged":[[0,0,0,6],[2,0,2,9],[4,0,4,9],[252,0,252,4]]}
["FAKULTET PROMETNIH ZNANOSTI",{"$nulls":8},"Datum ispisa: 20.11.2025"]
[]
["Izvješće o isplatama - po Naputku"]
[]
["Godina: 2025. Datum dokumenta: od 01.10.2025 do 31.10.2025. Konto izvršenja: od 3 do 59. Ovlaštenja:"]
["Redni broj","Naziv primatelja","OIB","Sjedište (mjesto i adresa)","Iznos","Valuta","Godina i mjesec","Vrsta rashoda","Naziv konta","Naziv isplatitelja"]
[{"$f":"ROW(A1)","v":{"v":1,"d":"1."}},"FLUGHAFEN GRAZ  BETRIEBS GMBH","n.p.","GRAZ",344.46,"EUR","2025/10","3235","Zakupnine i najamnine","FAKULTET PROMETNIH ZNANOSTI"]
[{"$f":"ROW(A2)","v":{"v":2,"d":"2."}},"LEAN GAMES LTD","n.p.","COMBE FLOREY TAUNTON,, COMBE DOWN LODGE",{"v":562.5,"d":"562.50"},"EUR","2025/10","3221","Uredski materijal i ostali materijalni rashodi","FAKULTET PROMETNIH ZNANOSTI"]
[{"v":3,"d":"3."},"STUDENTSKI CENTAR ZGB","22597784145","SAVSKA CESTA 25,, Zagreb",{"v":9415.26,"d":"9,415.26"},"EUR","2025/10","3237","Intelektualne i osobne usluge","FAKULTET PROMETNIH ZNANOSTI"]
[{"v":4,"d":"4."},"PRINT STUDIO D.O.O.","25170721692","ZAVRTNICA 17,, Zagreb",{"v":99,"d":"99.00"},"EUR","2025/10","3221","Uredski materijal i ostali materijalni rashodi","FAKULTET PROMETNIH ZNANOSTI"]
[{"v":5,"d":"5."},"GRENKE GC RENTING CROATIA D.O.O.","44115087893","AV.VEĆESLAVA HOLJEVCA 40,, Zagreb",{"v":717.3,"d":"717.30"},"EUR","2025/10","3235","Zakupnine i najamnine","FAKULTET PROMETNIH ZNANOSTI"]
[{"v":6,"d":"6."},"BENEFIT SYSTEMS D.O.O.","57845277445","HEINZELOVA 44, Zagreb",{"v":2299.5,"d":"2,299.50"},"EUR","2025/10","3239","Ostale usluge","FAKULTET PROMETNIH ZNANOSTI"]
[{"v":7,"d":"7."},"HANZA MEDIA D.O.O.","79517545745","KORANSKA 2, Zagreb",{"v":562.5,"d":"562.50"},"EUR","2025/10","3233","Usluge promidžbe i informiranja","FAKULTET PROMETNIH ZNANOSTI"]
[{"v":8,"d":"8."},"ISPIS D.O.O.","86023224138","MEĐIMURSKA 21,, Zagreb",129.39,"EUR","2025/10","3239","Ostale usluge","FAKULTET PROMETNIH ZNANOSTI"]
[{"v":9,"d":"9."},"Živa voda d.o.o.","86255713939","Karlovačka cesta 92 10020, Zagreb",753.23,"EUR","2025/10","3234","Komunalne usluge","FAKULTET PROMETNIH ZNANOSTI"]
[{"v":10,"d":"10."},"ZAGREBAČKA BANKA D.D.","92963223473","TRG BANA JELAČIĆA10, ZAGREB",{"v":1743.35,"d":"1,743.35"},"EUR","2025/10","3431","Bankarske usluge i usluge platnog prometa","FAKULTET PROMETNIH ZNANOSTI"]
[{"v":11,"d":"11."},"ELMAŽ D.O.O. ZAGREB","98474410137","NASELAK 22,, Zagreb",37.06,"EUR","2025/10","3221","Uredski materijal i ostali materijalni rashodi","FAKULTET PROMETNIH ZNANOSTI"]
[{"v":12,"d":"12."},"Z-EL D.O.O.","11374156664","INDUSTRIJSKA CESTA 28,, Zagreb",{"v":128.1,"d":"128.10"},"EUR","2025/10","3221","Uredski materijal i ostali materijalni rashodi","FAKULTET PROMETNIH ZNANOSTI"]
[{"v":13,"d":"13."},"SIGNAL-M","13268276185","A.BAUERA 13,, Zagreb",{"v":37.5,"d":"37.50"},"EUR","2025/10","3239","Ostale usluge","FAKULTET PROMETNIH ZNANOSTI"]
[{"v":14,"d":"14."},"LINKS D.O.O.","32614011568","DANKOVEČKA 5,, Zagreb",9.98,"EUR","2025/10","3221","Uredski materijal i ostali materijalni rashodi","FAKULTET PROMETNIH ZNANOSTI"]
[{"v":15,"d":"15."},"AUTOMAT CAFFE D.O.O.","57812223496","SVETOKLARSKA ULICA 11/A, ZAGREB-NOVI ZAGREB",{"v":112,"d":"112.00"},"EUR","2025/10","3293","Reprezentacija","FAKULTET PROMETNIH ZNANOSTI"]
[{"v":16,"d":"16."},"\"SAMOIZBOR\"","60524641367","MAGISTRATSKA 12, KRAPINA",{"v":1082.03,"d":"1,082.03"},"EUR","2025/10","3221","Uredski materijal i ostali materijalni rashodi","FAKULTET PROMETNIH ZNANOSTI"]
[{"v":17,"d":"17."},"NARODNE NOVINE D.D.","64546066176","SAVSKI GAJ XIII. PUT 6,, Zagreb",{"v":2600,"d":"2,600.00"},"EUR","2025/10","3233","Usluge promidžbe i informiranja","FAKULTET PROMETNIH ZNANOSTI"]
[{"v":18,"d":"18."},"USLUŽNI OBRT PIPIN VL. JOSO JOZIĆ","GDPR","GDPR",{"v":2967.5,"d":"2,967.50"},"EUR","2025/10","3232","Usluge tekućeg i investicijskog održavanja","FAKULTET PROMETNIH ZNANOSTI"]
[{"v":19,"d":"19."},"REFUNDACIJA ZAPOSLENICI","n.p.","n.p.",{"v":260,"d":"260.00"},"EUR","2025/10","3721","Naknade građanima i kućanstvima u novcu","FAKULTET PROMETNIH ZNANOSTI"]
[{"v":20,"d":"20."},"IEEE PRODUCTS & SERVIC","n.p.","n.p.",358.85,"EUR","2025/10","3294","Članarine i norme","FAKULTET PROMETNIH ZNANOSTI"]
[{"v":21,"d":"21."},"OPENAL IRELAND LIMITED","n.p.","117-126 SHERIFF STREET UPPER, DUBLIN",{"v":18.4,"d":"18.40"},"EUR","2025/10","3235","Zakupnine i najamnine","FAKULTET PROMETNIH ZNANOSTI"]
[{"v":22,"d":"22."},"RYANAIR DAC CORPORATE HEAD OFFICE AIRSID","n.p.","DUBLIN",265.54,"EUR","2025/10","3211","Službena putovanja","FAKULTET PROMETNIH ZNANOSTI"]
[{"v":23,"d":"23."},"Via Tech, obrt za usluge, vl. Anđelo Marunica","n.p.","GDPR",452.75,"EUR","2025/10","3237","Intelektualne i osobne usluge","FAKULTET PROMETNIH ZNANOSTI"]
[{"v":24,"d":"24."},"SILUETA AUTO J.D.O.O.","26572521248","JURIŠIĆEVA ULICA 19, ZAGREB",16.91,"EUR","2025/10","3231","Usluge telefona, interneta, pošte i prijevoza","FAKULTET PROMETNIH ZNANOSTI"]
[{"v":25,"d":"25."},"INA INDUSTRIJA NAFTE D.D.","27759560625","AVENIJA V.HOLJEVCA 10,, Zagreb",{"v":21466.83,"d":"21,466.83"},"EUR","2025/10","3223","Energija","FAKULTET PROMETNIH ZNANOSTI"]
[{"v":26,"d":"26."},"LINKS D.O.O.","32614011568","DANKOVEČKA 5,, Zagreb",299.99,"EUR","2025/10","4221","Uredska oprema i namještaj","FAKULTET PROMETNIH ZNANOSTI"]
[{"v":27,"d":"27."},"SOHO D.O.O. SOHO 29","37083621844","ZAGREBAČKA 31, VELIKA GORICA",76.75,"EUR","2025/10","3221","Uredski materijal i ostali materijalni rashodi","FAKULTET PROMETNIH ZNANOSTI"]
[{"v":28,"d":"28."},"ARENA HOSPITALITY GROUP D.D.","47625429199","SMAREGLINA ULICA 3, PULA",{"v":385.7,"d":"385.70"},"EUR","2025/10","3211","Službena putovanja","FAKULTET PROMETNIH ZNANOSTI"]
[{"v":29,"d":"29."},"KONOBA \"DIDA\"","57115090734","PETROVA 176,, Zagreb",491.25,"EUR","2025/10","3293","Reprezentacija","FAKULTET PROMETNIH ZNANOSTI"]
[{"v":30,"d":"30."},"PAGAR D.O.O. RESTORAN BOTA ŠARE","60966016226","ZVONIMIROVA 124,, Zagreb",{"v":368.4,"d":"368.40"},"EUR","2025/10","3293","Reprezentacija","FAKULTET PROMETNIH ZNANOSTI"]
[{"v":31,"d":"31."},"POSLOVNA LITERATURA IZDAVAČKA KUĆA","61452840082","CIRKOVLJANSKA 2,, Zagreb",97.44,"EUR","2025/10","4241","Knjige","FAKULTET PROMETNIH ZNANOSTI"]
[{"v":32,"d":"32."},"KONZUM PLUS","62226620908","ZAGREB,, M. ČAVIĆA 1/A",242.86,"EUR","2025/10","3293","Reprezentacija","FAKULTET PROMETNIH ZNANOSTI"]
[{"v":33,"d":"33."},"JEŽEVA KUĆICA","63191309721","FAKULTETSKO DOBRO 8, ZAGREB",{"v":73.3,"d":"73.30"},"EUR","2025/10","3293","Reprezentacija","FAKULTET PROMETNIH ZNANOSTI"]
[{"v":34,"d":"34."},"NARODNE NOVINE D.D.","64546066176","SAVSKI GAJ XIII. PUT 6,, Zagreb",560.05,"EUR","2025/10","3221","Uredski materijal i ostali materijalni rashodi","FAKULTET PROMETNIH ZNANOSTI"]
[{"v":35,"d":"35."},"PRIMAT LOGISTIKA D.O.O.","64645054565","ZASTAVNICE 11,, Hrvatski Leskovac",{"v":285,"d":"285.00"},"EUR","2025/10","4221","Uredska oprema i namještaj","FAKULTET PROMETNIH ZNANOSTI"]
[{"v":36,"d":"36."},"HGSPOT GRUPA d.o.o.","65553879500","Avenija Dubrovnik 46, ZAGREB",{"v":249,"d":"249.00"},"EUR","2025/10","4221","Uredska oprema i namještaj","FAKULTET PROMETNIH ZNANOSTI"]
[{"v":37,"d":"37."},"BIR PIVNICA &PIVOVARA INKORA S D.O.O.","70612365410","HARAMBAŠIĆEVA 31, ZAGREB",{"v":84.1,"d":"84.10"},"EUR","2025/10","3293","Reprezentacija","FAKULTET PROMETNIH ZNANOSTI"]
[{"v":38,"d":"38."},"BAUHAUS","71642207963","ŽITNJAK BB, VELIMIRA ŠKORPIKA 27, Zagreb",{"v":219,"d":"219.00"},"EUR","2025/10","3221","Uredski materijal i ostali materijalni rashodi","FAKULTET PROMETNIH ZNANOSTI"]
[{"v":39,"d":"39."},"STEMWISE D.O.O.","75697521276","GRGE TUŠKANA 37, ZAGREB",{"v":1575,"d":"1,575.00"},"EUR","2025/10","3237","Intelektualne i osobne usluge","FAKULTET PROMETNIH ZNANOSTI"]
[{"v":40,"d":"40."},"O2 D.O.O.","85717529894","SAVICA ŠANCI 127, Zagreb",{"v":300,"d":"300.00"},"EUR","2025/10","3232","Usluge tekućeg i investicijskog održavanja","FAKULTET PROMETNIH ZNANOSTI"]
[{"v":41,"d":"41."},"VRUTAK D.O.O.","95092888930","VODOVODNA 20 A, Zagreb",279.71,"EUR","2025/10","3293","Reprezentacija","FAKULTET PROMETNIH ZNANOSTI"]
[{"v":42,"d":"42."},"HOĆU KNJIGU D.O.O.","97838993800","BANJAVČIĆEVA ULICA 22, ZAGREB",{"v":107,"d":"107.00"},"EUR","2025/10","3221","Uredski materijal i ostali materijalni rashodi","FAKULTET PROMETNIH ZNANOSTI"]
[{"v":43,"d":"43."},"EUROMUSIC AGENCY D.O.O. ULICA KOČE RACINA 1/15","59262483201","ČAKOVEC",{"v":568.9,"d":"568.90"},"EUR","2025/10","3221","Uredski materijal i ostali materijalni rashodi","FAKULTET PROMETNIH ZNANOSTI"]
[{"v":44,"d":"44."},"WENDY, SPOL. S R.O.","n.p.","KOKORINSKA 1615, MELNIK",341.63,"EUR","2025/10","3239","Ostale usluge","FAKULTET PROMETNIH ZNANOSTI"]
[{"v":45,"d":"45."},"KINEZIOLOŠKI FAKULTET SVEUČILIŠTA U ZAGREBU","25329931628","Horvaćanski zavoj 15, ZAGREB",{"v":360,"d":"360.00"},"EUR","2025/10","3235","Zakupnine i najamnine","FAKULTET PROMETNIH ZNANOSTI"]
[{"v":46,"d":"46."},"ZRAČNA LUKA ZADAR D.O.O.","39087623202","ULICA I BR. 2/A, ZEMUNIK DONJI",{"v":252,"d":"252.00"},"EUR","2025/10","3235","Zakupnine i najamnine","FAKULTET PROMETNIH ZNANOSTI"]
[{"v":47,"d":"47."},"STUDENTSKI CENTAR KARLOVAC","58335400167","F.K.FRANKOPANA 5, KARLOVAC",{"v":767,"d":"767.00"},"EUR","2025/10","3237","Intelektualne i osobne usluge","FAKULTET PROMETNIH ZNANOSTI"]
[{"v":48,"d":"48."},"AUTO GAŠPARIĆ D.O.O.","69565927095","VELIKOGORIČKA 19A, Vukovina",{"v":2692.7,"d":"2,692.70"},"EUR","2025/10","3235","Zakupnine i najamnine","FAKULTET PROMETNIH ZNANOSTI"]
[{"v":49,"d":"49."},"ZAGREBAČKI ELEKTRIČNI TRAMVAJ D.O.O.","82031999604","OZALJSKA 105, Zagreb",307.92,"EUR","2025/10","3212","Naknade za prijevoz, za rad na terenu i odvojeni život","FAKULTET PROMETNIH ZNANOSTI"]
[{"v":50,"d":"50."},"HRVATSKA POŠTA D.D.","87311810356","POŠTANSKA ULICA 9, VELIKA GORICA",105.06,"EUR","2025/10","3231","Usluge telefona, interneta, pošte i prijevoza","FAKULTET PROMETNIH ZNANOSTI"]
[{"v":51,"d":"51."},"QUAHWA D.O.O.","96516152119","ULICA NIKOLE TESLE 9/1, ZAGREB",43.75,"EUR","2025/10","3232","Usluge tekućeg i investicijskog održavanja","FAKULTET PROMETNIH ZNANOSTI"]
[{"v":52,"d":"52."},null,"n.p.","n.p.",{"$f":"39737.2+2976.19","v":{"v":42713.39,"d":"42,713.39"}},"EUR","2025/10","3211","Službena putovanja","FAKULTET PROMETNIH ZNANOSTI"]
[{"v":53,"d":"53."},null,"n.p.","n.p.",{"v":560,"d":"560.00"},"EUR","2025/10","3214","Ostale naknade troškova zaposlenima","FAKULTET PROMETNIH ZNANOSTI"]
[{"v":54,"d":"54."},"REFUNDACIJA ZAPOSLENICI","n.p.","n.p.",259.39,"EUR","2025/10","3235","Zakupnine i najamnine","FAKULTET PROMETNIH ZNANOSTI"]
[{"v":55,"d":"55."},"REFUNDACIJA ZAPOSLENICI","n.p.","n.p.",{"v":980,"d":"980.00"},"EUR","2025/10","3295","Pristojbe i naknade","FAKULTET PROMETNIH ZNANOSTI"]
[{"v":56,"d":"56."},"CENTRE FOR RESEARCH AND TECHNOLOGY HELLAS",null,"Street 6, THESSALONIKI",{"v":450,"d":"450.00"},"EUR","2025/10","3213","Stručno usavršavanje zaposlenika","FAKULTET PROMETNIH ZNANOSTI"]
[{"v":57,"d":"57."},"HEVIZ-BALATON AIRPORT","n.p.","KOSSUTH LUTCA 1, HEVIZ",30.48,"EUR","2025/10","3235","Zakupnine i najamnine","FAKULTET PROMETNIH ZNANOSTI"]
[{"v":58,"d":"58."},"OPENAL, LLC","n.p.","548 MARKET STREET PMB 97273, SAN FRANCISCO",246.95,"EUR","2025/10","3235","Zakupnine i najamnine","FAKULTET PROMETNIH ZNANOSTI"]
[{"v":59,"d":"59."},"PTV AUSTRIA PLANUNG TRANSPORT VERKEHR GMBH",null,"SIEGELGASSE 1/1/2, WIEN",{"v":7682.38,"d":"7,682.38"},"EUR","2025/10","3238","Računalne usluge","FAKULTET PROMETNIH ZNANOSTI"]
[{"v":60,"d":"60."},"INSTITUT PROMETA I VEZA","39779737813","KUŠLANOVA 2, Zagreb",{"v":46,"d":"46.00"},"EUR","2025/10","3234","Komunalne usluge","FAKULTET PROMETNIH ZNANOSTI"]
[{"v":61,"d":"61."},"AEROLUX 1974 DOO","04773128548","ZAGREB",{"v":1134.37,"d":"1,134.37"},"EUR","2025/10","3232","Usluge tekućeg i investicijskog održavanja","FAKULTET PROMETNIH ZNANOSTI"]
[{"v":62,"d":"62."},"STUDENTSKI CENTAR ZGB","22597784145","SAVSKA CESTA 25, Zagreb",{"v":1234.19,"d":"1,234.19"},"EUR","2025/10","3293","Reprezentacija","FAKULTET PROMETNIH ZNANOSTI"]
[{"v":63,"d":"63."},"ZRAČNA LUKA RIJEKA","37940245720","HAMEC 1,, Omišalj",{"v":35,"d":"35.00"},"EUR","2025/10","3235","Zakupnine i najamnine","FAKULTET PROMETNIH ZNANOSTI"]
[{"v":64,"d":"64."},"BISTRO&BAR KAŠTEL","55915872521","ŠETALIŠTE DR.FRANJE TUĐMANA 1, KARLOVAC",{"v":141.1,"d":"141.10"},"EUR","2025/10","3293","Reprezentacija","FAKULTET PROMETNIH ZNANOSTI"]
[{"v":65,"d":"65."},"EPILOG STUDIO D.O.O.","56895703718","MATIJE GUPCA 78, ZABOK",103.38,"EUR","2025/10","3233","Usluge promidžbe i informiranja","FAKULTET PROMETNIH ZNANOSTI"]
[{"$f":"ROW(A66)","v":{"v":66,"d":"66."}},"HEP OPSKRBA D.O.O. DISTR.PODR.ELEKTRA","63073332379","ULICA GRADA VUKOVARA 37, Zagreb",{"v":1215.35,"d":"1,215.35"},"EUR","2025/10","3223","Energija","FAKULTET PROMETNIH ZNANOSTI"]
[{"v":67,"d":"67."},null,"n.p.","n.p.",{"$f":"568090.35+38333.8","v":{"v":606424.15,"d":"606,424.15"}},"EUR","2025/10","3111","Plaće za redovan rad","FAKULTET PROMETNIH ZNANOSTI"]
[{"v":68,"d":"68."},null,"n.p.","n.p.",157.94,"EUR","2025/10","3114","Plaće za posebne uvjete rada","FAKULTET PROMETNIH ZNANOSTI"]
[{"v":69,"d":"69."},null,"n.p.","n.p.",{"v":20477.45,"d":"20,477.45"},"EUR","2025/10","3121","Ostali rashodi za zaposlene","FAKULTET PROMETNIH ZNANOSTI"]
[{"v":70,"d":"70."},null,"n.p.","n.p.",{"v":2257.82,"d":"2,257.82"},"EUR","2025/10","3131","Doprinosi za mirovinsko osiguranje za staž s povećanim trajanjem","FAKULTET PROMETNIH ZNANOSTI"]
[{"v":71,"d":"71."},null,"n.p.","n.p.",{"$f":"5694.5+92090.4","v":{"v":97784.9,"d":"97,784.90"}},"EUR","2025/10","3132","Doprinosi za obvezno zdravstveno osiguranje","FAKULTET PROMETNIH ZNANOSTI"]
[{"v":72,"d":"72."},null,"n.p.","n.p.",{"$f":"1115.73+11242.35","v":{"v":12358.08,"d":"12,358.08"}},"EUR","2025/10","3212","Naknade za prijevoz, za rad na terenu i odvojeni život","FAKULTET PROMETNIH ZNANOSTI"]
[{"v":73,"d":"73."},"CVJEČARSKI OBRT VERA","GDPR","GDPR",{"v":240,"d":"240.00"},"EUR","2025/10","3299","Ostali nespomenuti rashodi poslovanja","FAKULTET PROMETNIH ZNANOSTI"]
[{"v":74,"d":"74."},"AGENCIJA ZA KOMERCIJALNU DJELATNOST","58843087891","SAVSKA CESTA 31,, Zagreb",{"v":4165.2,"d":"4,165.20"},"EUR","2025/10","3239","Ostale usluge","FAKULTET PROMETNIH ZNANOSTI"]
[{"v":75,"d":"75."},"EXELLISO D.O.O.","94275387625","SVETICE 24, ZAGREB",756.43,"EUR","2025/10","3221","Uredski materijal i ostali materijalni rashodi","FAKULTET PROMETNIH ZNANOSTI"]
[{"v":76,"d":"76."},null,"n.p.","n.p.",{"v":3705.77,"d":"3,705.77"},"EUR","2025/10","3111","Plaće za redovan rad","FAKULTET PROMETNIH ZNANOSTI"]
[{"v":77,"d":"77."},null,"n.p.","n.p.",{"v":2794.15,"d":"2,794.15"},"EUR","2025/10","3121","Ostali rashodi za zaposlene","FAKULTET PROMETNIH ZNANOSTI"]
[{"v":78,"d":"78."},null,"n.p.","n.p.",-38.49,"EUR","2025/10","3212","Naknade za prijevoz, za rad na terenu i odvojeni život","FAKULTET PROMETNIH ZNANOSTI"]
[{"v":79,"d":"79."},null,"n.p.","n.p.",{"v":2400,"d":"2,400.00"},"EUR","2025/10","3299","Ostali nespomenuti rashodi poslovanja","FAKULTET PROMETNIH ZNANOSTI"]
[{"v":80,"d":"80."},"EKONOMIK SERVIS D.O.O.","42462741842","2. KRALJEVEC 6 10000, ZAGREB",{"v":250,"d":"250.00"},"EUR","2025/10","3239","Ostale usluge","FAKULTET PROMETNIH ZNANOSTI"]
[{"v":81,"d":"81."},"STUDENTSKI CENTAR PULA","63288148995","ULICA SV.MIHOVILA 3,, Pula",375.83,"EUR","2025/10","3237","Intelektualne i osobne usluge","FAKULTET PROMETNIH ZNANOSTI"]
[{"v":82,"d":"82."},"VODOOPSKRBA I ODVODNJA D.O.O. Odjel pravnih i kadrovskih poslova","83416546499","FOLNEGOVIĆEVA 1,, Zagreb",58.65,"EUR","2025/10","3232","Usluge tekućeg i investicijskog održavanja","FAKULTET PROMETNIH ZNANOSTI"]
[{"v":83,"d":"83."},"ANKER","21016032890","BRUNE BUŠIĆA 5,, Zagreb",246.83,"EUR","2025/10","3224","Materijal i dijelovi za tekuće i investicijsko održavanje","FAKULTET PROMETNIH ZNANOSTI"]
[{"v":84,"d":"84."},"LIMES PLUS D.O.O.","57560191883","HEINZELOVA 60,, Zagreb",592.54,"EUR","2025/10","3225","Sitni inventar i autogume","FAKULTET PROMETNIH ZNANOSTI"]
[{"v":85,"d":"85."},"CONCORDA D.O.O.","60694472023","ČAZMANSKA 6, ZAGREB",{"v":2227.98,"d":"2,227.98"},"EUR","2025/10","3211","Službena putovanja","FAKULTET PROMETNIH ZNANOSTI"]
[{"v":86,"d":"86."},"CONCORDA D.O.O.","60694472023","ČAZMANSKA 6, ZAGREB",{"v":1100,"d":"1,100.00"},"EUR","2025/10","3213","Stručno usavršavanje zaposlenika","FAKULTET PROMETNIH ZNANOSTI"]
[{"v":87,"d":"87."},"VODOVOD ZADAR","89406825003","ŠPIRE BRUSINE 17,, Zadar",11.16,"EUR","2025/10","3234","Komunalne usluge","FAKULTET PROMETNIH ZNANOSTI"]
[{"v":88,"d":"88."},null,"n.p.","n.p.",281.52,"EUR","2025/10","3237","Intelektualne i osobne usluge","FAKULTET PROMETNIH ZNANOSTI"]
[{"v":89,"d":"89."},null,"n.p.","n.p.",{"v":2276.5,"d":"2,276.50"},"EUR","2025/10","3237","Intelektualne i osobne usluge","FAKULTET PROMETNIH ZNANOSTI"]
[{"v":90,"d":"90."},"BESL EVENTAGENTUR GMBH & CO.KG","GDPR","KÖTHENER STRAßE 38, BERLIN",{"v":1500,"d":"1,500.00"},"EUR","2025/10","3213","Stručno usavršavanje zaposlenika","FAKULTET PROMETNIH ZNANOSTI"]
[{"v":91,"d":"91."},"BRANKO SUK","GDPR","GDPR",{"v":2203.75,"d":"2,203.75"},"EUR","2025/10","3237","Intelektualne i osobne usluge","FAKULTET PROMETNIH ZNANOSTI"]
[{"v":92,"d":"92."},"DUKIĆ TIN","GDPR","GDPR",{"v":1827.5,"d":"1,827.50"},"EUR","2025/10","3237","Intelektualne i osobne usluge","FAKULTET PROMETNIH ZNANOSTI"]
[{"v":93,"d":"93."},"KUDELJAN NIKOLA","GDPR","GDPR",{"v":2354.17,"d":"2,354.17"},"EUR","2025/10","3237","Intelektualne i osobne usluge","FAKULTET PROMETNIH ZNANOSTI"]
[{"v":94,"d":"94."},"LUKA ZOVAK","GDPR","GDPR",{"v":860,"d":"860.00"},"EUR","2025/10","3237","Intelektualne i osobne usluge","FAKULTET PROMETNIH ZNANOSTI"]
[{"v":95,"d":"95."},"NIKOLA LOPAC","GDPR","GDPR",{"v":274.9,"d":"274.90"},"EUR","2025/10","3237","Intelektualne i osobne usluge","FAKULTET PROMETNIH ZNANOSTI"]
[{"v":96,"d":"96."},"GRADSKO STAMBENO KOM.GOSP. GSKG","03744272526","SAVSKA CESTA 1,, Zagreb",628.65,"EUR","2025/10","3234","Komunalne usluge","FAKULTET PROMETNIH ZNANOSTI"]
[{"v":97,"d":"97."},"ALFA SECURITY & DEMINING D.O.O.","15417598684","Grdanjci 1 /1 Grdanjci, Grdanjci",124.43,"EUR","2025/10","3239","Ostale usluge","FAKULTET PROMETNIH ZNANOSTI"]
[{"v":98,"d":"98."},"ART BEAT ZONE","28666849327","ZAGREB,, ŠIME DEVČIĆA 4",{"v":580,"d":"580.00"},"EUR","2025/10","3239","Ostale usluge","FAKULTET PROMETNIH ZNANOSTI"]
[{"v":99,"d":"99."},"KONICA MINOLTA POSLOVNA RJEŠENJA D.O.O.","31697259786","HORVATOVA 82,, Zagreb",{"v":3288.04,"d":"3,288.04"},"EUR","2025/10","3235","Zakupnine i najamnine","FAKULTET PROMETNIH ZNANOSTI"]
[{"v":100,"d":"100."},"NODEFUSION D.O.O.","60378406301","PODBREŽJE X. 9 A, Zagreb",995.43,"EUR","2025/10","3238","Računalne usluge","FAKULTET PROMETNIH ZNANOSTI"]
[{"v":101,"d":"101."},"SINONIM D.O.O.","60695956664","PRINCA EUGENA SAVOJSKOG 51,, Osijek",{"v":3335.63,"d":"3,335.63"},"EUR","2025/10","3237","Intelektualne i osobne usluge","FAKULTET PROMETNIH ZNANOSTI"]
[{"v":102,"d":"102."},"GRAD ZAGREB - GRADSKI URED ZA OBNOVU, IZGRADNJU, PROSTORNO UREĐENJE, GRADITELJSTVO I KOMUNALNE POSLOVE","61817894937","TRG STJEPANA RADIĆA 1,, Zagreb",409.11,"EUR","2025/10","3234","Komunalne usluge","FAKULTET PROMETNIH ZNANOSTI"]
[{"v":103,"d":"103."},"LEXPERA D.O.O.","79506290597","ZAGREB,, TUŠKANOVA 37",121.88,"EUR","2025/10","3221","Uredski materijal i ostali materijalni rashodi","FAKULTET PROMETNIH ZNANOSTI"]
[{"v":104,"d":"104."},"BABIĆ & BRBOROVIĆ","GDPR","GDPR",{"v":1875,"d":"1,875.00"},"EUR","2025/10","3237","Intelektualne i osobne usluge","FAKULTET PROMETNIH ZNANOSTI"]
[{"v":105,"d":"105."},"NACIONALNA I SVEUČILIŠNA KNJIŽNICA","84838770814","HRVATSKE BRATSKE ZAJEDNICE 4,, Zagreb",{"v":92.9,"d":"92.90"},"EUR","2025/10","3235","Zakupnine i najamnine","FAKULTET PROMETNIH ZNANOSTI"]
[{"v":106,"d":"106."},"MEDICPRO D.O.O.","87488264639","CARINARSKI ODVOJAK 4, ČAKOVEC",87.75,"EUR","2025/10","3221","Uredski materijal i ostali materijalni rashodi","FAKULTET PROMETNIH ZNANOSTI"]
[{"v":107,"d":"107."},"ELMAŽ D.O.O. ZAGREB","98474410137","NASELAK 22,, Zagreb",329.13,"EUR","2025/10","3224","Materijal i dijelovi za tekuće i investicijsko održavanje","FAKULTET PROMETNIH ZNANOSTI"]
[{"v":108,"d":"108."},"ALEXANDROS RAPTIS SA","n.p.","LAMPROU  KATSONI 24 & 23RD  OCTOBER 30, ATENA",{"v":1020,"d":"1,020.00"},"EUR","2025/10","3211","Službena putovanja","FAKULTET PROMETNIH ZNANOSTI"]
[{"v":109,"d":"109."},"VERYON","n.p.","548 MARKET ST, SUITE #42403, SAN FRANCISCO",{"v":3578.62,"d":"3,578.62"},"EUR","2025/10","3221","Uredski materijal i ostali materijalni rashodi","FAKULTET PROMETNIH ZNANOSTI"]
[{"v":110,"d":"110."},"IKEA HRVATSKA D.O.O.","21523879111","ALFREDA NOBELA 2,, Sesvete-Kraljevec",28.97,"EUR","2025/10","3221","Uredski materijal i ostali materijalni rashodi","FAKULTET PROMETNIH ZNANOSTI"]
[{"v":111,"d":"111."},"HRAVATSKI TELEKOM d.d.","81793146560","Radnička cesta 21, ZAGREB",{"v":609.1,"d":"609.10"},"EUR","2025/10","3231","Usluge telefona, interneta, pošte i prijevoza","FAKULTET PROMETNIH ZNANOSTI"]
[{"v":112,"d":"112."},"REFUNDACIJA ZAPOSLENICI","n.p.","n.p.",444.06,"EUR","2025/10","3231","Usluge telefona, interneta, pošte i prijevoza","FAKULTET PROMETNIH ZNANOSTI"]
[{"v":113,"d":"113."},"REFUNDACIJA ZAPOSLENICI","n.p.","n.p.",{"v":5.3,"d":"5.30"},"EUR","2025/10","3241","Naknade troškova osobama izvan radnog odnosa","FAKULTET PROMETNIH ZNANOSTI"]
[{"v":114,"d":"114."},"REFUNDACIJA ZAPOSLENICI","n.p.","n.p.",{"v":281.9,"d":"281.90"},"EUR","2025/10","3293","Reprezentacija","FAKULTET PROMETNIH ZNANOSTI"]
[{"v":115,"d":"115."},"FUDO","n.p.","KOŠAŠKI DOL 51E, MARIBOR",{"v":109.8,"d":"109.80"},"EUR","2025/10","3293","Reprezentacija","FAKULTET PROMETNIH ZNANOSTI"]
[{"v":116,"d":"116."},"JASTOŽERA BEPO D.O.O.","05232429620","SOKOLGRADSKA 42, ZAGREB",{"v":147.5,"d":"147.50"},"EUR","2025/10","3293","Reprezentacija","FAKULTET PROMETNIH ZNANOSTI"]
[{"v":117,"d":"117."},"HOTEL BALETNA ŠKOLA","09554457283","BISKUPA FRANE FRANIĆA 1,, Kaštel Kambelovac",{"v":208.3,"d":"208.30"},"EUR","2025/10","3293","Reprezentacija","FAKULTET PROMETNIH ZNANOSTI"]
[{"v":118,"d":"118."},"MARTA-PROM D.O.O.","20238146719","TRG.J.KKENNEDYJA 2, ZAGREB",13.55,"EUR","2025/10","3239","Ostale usluge","FAKULTET PROMETNIH ZNANOSTI"]
[{"v":119,"d":"119."},"FRANKA DM VIS D.O.O.","29135480877","GORNJA MILNA 3, VIS",{"v":104,"d":"104.00"},"EUR","2025/10","3293","Reprezentacija","FAKULTET PROMETNIH ZNANOSTI"]
[{"v":120,"d":"120."},"RESTORAN BRONZIN WEST VISION D.O.O.","33516482489","OBALA PALIH OMLADINACA 5B, ŠIBENIK",{"v":100.4,"d":"100.40"},"EUR","2025/10","3293","Reprezentacija","FAKULTET PROMETNIH ZNANOSTI"]
[{"v":121,"d":"121."},"KONOBA \"FEROL\"","43316235347","POSTROŽJE 20A, VIS",93.51,"EUR","2025/10","3293","Reprezentacija","FAKULTET PROMETNIH ZNANOSTI"]
[{"v":122,"d":"122."},"OSTREA D.O.O.","47576280792","MALI STON,, Ston",{"v":107.4,"d":"107.40"},"EUR","2025/10","3293","Reprezentacija","FAKULTET PROMETNIH ZNANOSTI"]
[{"v":123,"d":"123."},"BISTRO PJAT","47633889653","STOMORICA 10, ZADAR",{"v":418.3,"d":"418.30"},"EUR","2025/10","3293","Reprezentacija","FAKULTET PROMETNIH ZNANOSTI"]
[{"v":124,"d":"124."},"KONOBA \"GOSTIONICA AERODROM\"","55578406939","PLINSKO POLJE 27, VIS",{"v":76,"d":"76.00"},"EUR","2025/10","3293","Reprezentacija","FAKULTET PROMETNIH ZNANOSTI"]
[{"v":125,"d":"125."},"ZALOGAJNICA KOD ŠIME","64010316852","MARTIĆEVA 62, ZAGREB",{"v":29,"d":"29.00"},"EUR","2025/10","3293","Reprezentacija","FAKULTET PROMETNIH ZNANOSTI"]
[{"v":126,"d":"126."},"INSTAR CENTER D.O.O.","64308723629","ANDRIJE KAČIĆA MIOŠIĆA 22C, VELIKA GORICA",52.68,"EUR","2025/10","3221","Uredski materijal i ostali materijalni rashodi","FAKULTET PROMETNIH ZNANOSTI"]
[{"v":127,"d":"127."},"TRIPLETA D.O.O. RESTORAN BRUSCHETTA","64488409734","MIHOVILA PAVLINOVIĆA 12, ZADAR",{"v":505.4,"d":"505.40"},"EUR","2025/10","3293","Reprezentacija","FAKULTET PROMETNIH ZNANOSTI"]
[{"v":128,"d":"128."},"HGSPOT GRUPA d.o.o.","65553879500","Avenija Dubrovnik 46, ZAGREB",{"v":13.2,"d":"13.20"},"EUR","2025/10","3221","Uredski materijal i ostali materijalni rashodi","FAKULTET PROMETNIH ZNANOSTI"]
[{"v":129,"d":"129."},"RESTORAN GASTRO","73192166056","ULICA HRVATSKOG SABORA 1, ZADAR",87.15,"EUR","2025/10","3293","Reprezentacija","FAKULTET PROMETNIH ZNANOSTI"]
[{"$f":"ROW(A130)","v":{"v":130,"d":"130."}},"PIZZERIA DUKSA","81380319038","DUKNOVIĆEVA 6,, Zagreb",{"v":51.5,"d":"51.50"},"EUR","2025/10","3293","Reprezentacija","FAKULTET PROMETNIH ZNANOSTI"]
[{"v":131,"d":"131."},"U.O.KONOBA DVOR","85012220438","PUT BRIGA 31, PRIMOŠTEN",{"v":209,"d":"209.00"},"EUR","2025/10","3293","Reprezentacija","FAKULTET PROMETNIH ZNANOSTI"]
[{"v":132,"d":"132."},"OBRT ZA MORSKI RIBOLOV \"HOBOS\"","89030218051","SPLITSKA 48, BIOGRAD NA MORU",{"v":88,"d":"88.00"},"EUR","2025/10","3293","Reprezentacija","FAKULTET PROMETNIH ZNANOSTI"]
[{"v":133,"d":"133."},"ANTONIO, OBRT ZA USLUGE","GDPR","GDPR",{"v":3024,"d":"3,024.00"},"EUR","2025/10","3232","Usluge tekućeg i investicijskog održavanja","FAKULTET PROMETNIH ZNANOSTI"]
[{"v":134,"d":"134."},"MCDONALDS","97492131626","RUDEŠKA CESTA 87A, ZAGREB",{"v":37.7,"d":"37.70"},"EUR","2025/10","3293","Reprezentacija","FAKULTET PROMETNIH ZNANOSTI"]
[{"v":135,"d":"135."},"ISTYLE","98828194905","JANKOMIR, 33, Zagreb",65.98,"EUR","2025/10","3221","Uredski materijal i ostali materijalni rashodi","FAKULTET PROMETNIH ZNANOSTI"]
[{"v":136,"d":"136."},"DRADAR D.O.O.","99760170734","PUŽEVA 13,, Zagreb",{"v":52,"d":"52.00"},"EUR","2025/10","3221","Uredski materijal i ostali materijalni rashodi","FAKULTET PROMETNIH ZNANOSTI"]
[{"v":137,"d":"137."},"GEOGIS D.O.O.","63046817751","II MAKSIMIRSKO NASELJE 3,, Zagreb",43.13,"EUR","2025/10","3235","Zakupnine i najamnine","FAKULTET PROMETNIH ZNANOSTI"]
[{"v":138,"d":"138."},"ESSENDI POLAND S.A.","n.p.","UL. ZLOTA 59, WARSZAWA",99.62,"EUR","2025/10","3211","Službena putovanja","FAKULTET PROMETNIH ZNANOSTI"]
[{"v":139,"d":"139."},"ISISTEMI, prodaja in servis ra??unalnikov, telefonije d.o.o.","n.p.","ŽUPANČIĆEVA ULICA 8B, AJDOVŠTINA",{"v":90,"d":"90.00"},"EUR","2025/10","4221","Uredska oprema i namještaj","FAKULTET PROMETNIH ZNANOSTI"]
[{"v":140,"d":"140."},"NICESHOPS GMBH 3DJAKE","n.p.","SAAZ 99, PALDAU",58.39,"EUR","2025/10","3221","Uredski materijal i ostali materijalni rashodi","FAKULTET PROMETNIH ZNANOSTI"]
[{"v":141,"d":"141."},"SAVA TURIZEM D.D.","n.p.","DUNAJSKA CESTA 152, LJUBLJANA",{"v":300,"d":"300.00"},"EUR","2025/10","3235","Zakupnine i najamnine","FAKULTET PROMETNIH ZNANOSTI"]
[{"v":142,"d":"142."},"VALMAR D.O.O.","n.p.","LAVA 7A, CELJE",{"v":2554.73,"d":"2,554.73"},"EUR","2025/10","3224","Materijal i dijelovi za tekuće i investicijsko održavanje","FAKULTET PROMETNIH ZNANOSTI"]
[{"v":143,"d":"143."},"BATAK GRIL FILA USLUGE D.O.O.","03777302074","RADNIČKA CESTA 37 B,, Zagreb",{"v":88.2,"d":"88.20"},"EUR","2025/10","3293","Reprezentacija","FAKULTET PROMETNIH ZNANOSTI"]
[{"v":144,"d":"144."},"F.R. - CVJEĆARSTVO D.O.O.","14191016780","JALKOVEČKA 17, VARAŽDIN",{"v":380,"d":"380.00"},"EUR","2025/10","3299","Ostali nespomenuti rashodi poslovanja","FAKULTET PROMETNIH ZNANOSTI"]
[{"v":145,"d":"145."},"BISTRO VIDIKOVAC","15384895717","SVETA BARBARA BB, KOSTRENA",{"v":223.6,"d":"223.60"},"EUR","2025/10","3293","Reprezentacija","FAKULTET PROMETNIH ZNANOSTI"]
[{"v":146,"d":"146."},"SANCTA DOMENICA D.O.O.","35409850545","DR. FRANJE TUĐMANA 69,, Sveta Nedelja",{"v":489,"d":"489.00"},"EUR","2025/10","4225","Instrumenti i uređaji","FAKULTET PROMETNIH ZNANOSTI"]
[{"v":147,"d":"147."},"LACONIQ D.O.O.","38976470104","ULICA GRADA VUKOVARA 23, ZAGREB",{"v":1777.78,"d":"1,777.78"},"EUR","2025/10","3233","Usluge promidžbe i informiranja","FAKULTET PROMETNIH ZNANOSTI"]
[{"v":148,"d":"148."},"Ustanova za zdravstvenu skrb OptimaMed","40946431457","Gotalovečka 2 ZAGREB, ZAGREB",{"v":1000,"d":"1,000.00"},"EUR","2025/10","3213","Stručno usavršavanje zaposlenika","FAKULTET PROMETNIH ZNANOSTI"]
[{"v":149,"d":"149."},"T.M.D.TRAVEL D.O.O.","41349475869","HORVAĆANSKA 27,, Zagreb",{"v":2099.42,"d":"2,099.42"},"EUR","2025/10","3211","Službena putovanja","FAKULTET PROMETNIH ZNANOSTI"]
[{"v":150,"d":"150."},"SPAR HRVATSKA D.O.O. INTESPAR","46108893754","ULICA KNEZA BRANIMIRA 181,, Zagreb-Dubrava",31.96,"EUR","2025/10","3293","Reprezentacija","FAKULTET PROMETNIH ZNANOSTI"]
[{"v":151,"d":"151."},"PIZZERIA & CAFFE BAR TOCCARE","46887109846","VUKOMEREC 36,, Zagreb",{"v":133,"d":"133.00"},"EUR","2025/10","3293","Reprezentacija","FAKULTET PROMETNIH ZNANOSTI"]
[{"v":152,"d":"152."},"VALICON d.o.o.","48343448386","Draškovićeva ulica 54, Zagreb",{"v":2733.75,"d":"2,733.75"},"EUR","2025/10","3235","Zakupnine i najamnine","FAKULTET PROMETNIH ZNANOSTI"]
[{"v":153,"d":"153."},"TEHNO MAG D.O.O.","74887997071","SLAVONSKA AVENIJA 53,, ZAGREB",699.99,"EUR","2025/10","4223","Oprema za održavanje i zaštitu","FAKULTET PROMETNIH ZNANOSTI"]
[{"v":154,"d":"154."},"MILENIJ HOTELI D.O.O. 4  OPATIJSKA CVIJETA","78796880101","V.C EMINA 6,, Opatija",{"v":37.2,"d":"37.20"},"EUR","2025/10","3293","Reprezentacija","FAKULTET PROMETNIH ZNANOSTI"]
[{"v":155,"d":"155."},"KODEKS D.O.O.","82691288367","NOVA CESTA 60, ZAGREB",29.94,"EUR","2025/10","3221","Uredski materijal i ostali materijalni rashodi","FAKULTET PROMETNIH ZNANOSTI"]
[{"v":156,"d":"156."},"MULLER TRGOVINA ZGB","84698789700","NADINSKA 29,, Zagreb",{"v":10.6,"d":"10.60"},"EUR","2025/10","3221","Uredski materijal i ostali materijalni rashodi","FAKULTET PROMETNIH ZNANOSTI"]
[{"v":157,"d":"157."},"MULLER TRGOVINA ZGB","84698789700","NADINSKA 29,, Zagreb",10.68,"EUR","2025/10","3293","Reprezentacija","FAKULTET PROMETNIH ZNANOSTI"]
[{"v":158,"d":"158."},"IMPERIJAL RIVIERA D.D. VALMAR PARENTINO HOTEL","90896496260","PICAL 1, POREČ",{"v":568,"d":"568.00"},"EUR","2025/10","3293","Reprezentacija","FAKULTET PROMETNIH ZNANOSTI"]
[{"v":159,"d":"159."},"QUAHWA D.O.O.","96516152119","ULICA NIKOLE TESLE 9/1, ZAGREB",{"v":146.8,"d":"146.80"},"EUR","2025/10","3293","Reprezentacija","FAKULTET PROMETNIH ZNANOSTI"]
[{"v":160,"d":"160."},null,"n.p.","n.p.",{"v":635574.2,"d":"635,574.20"},"EUR","2025/10","3237","Intelektualne i osobne usluge","FAKULTET PROMETNIH ZNANOSTI"]
[{"v":161,"d":"161."},"CROATIA OSIGURANJE D.D.","26187994862","MIRAMARSKA 22,, Zagreb",{"v":2296.26,"d":"2,296.26"},"EUR","2025/10","3292","Premije osiguranja","FAKULTET PROMETNIH ZNANOSTI"]
[{"v":162,"d":"162."},"VODOOPSKRBA I ODVODNJA D.O.O. Odjel pravnih i kadrovskih poslova","83416546499","FOLNEGOVIĆEVA 1,, Zagreb",297.28,"EUR","2025/10","3234","Komunalne usluge","FAKULTET PROMETNIH ZNANOSTI"]
[{"v":163,"d":"163."},"MDPI","n.p.","ST.ALBAN-ANLAGE 66,, BASEL",{"v":1998.46,"d":"1,998.46"},"EUR","2025/10","3213","Stručno usavršavanje zaposlenika","FAKULTET PROMETNIH ZNANOSTI"]
[{"v":164,"d":"164."},"HRVATSKA UDRUGA POSLODAVACA","80978339255","RADNIČKA CESTA 37 A, ZAGREB",{"v":337.5,"d":"337.50"},"EUR","2025/10","3294","Članarine i norme","FAKULTET PROMETNIH ZNANOSTI"]
[{"v":165,"d":"165."},"FINA-FINANCIJSKA AGENCIJA","85821130368","ZAGREB,UL.GRADA VUKOVARA 70,, ZAGREB",10.41,"EUR","2025/10","3221","Uredski materijal i ostali materijalni rashodi","FAKULTET PROMETNIH ZNANOSTI"]
[{"v":166,"d":"166."},"HRVATSKA REGULATORNA AGENCIJA ZA MREŽNE DJELATNOSTI","87950783661","ULICA ROBERTA FRANGEŠA MIHANOVIĆA 9,, Zagreb",{"v":198.2,"d":"198.20"},"EUR","2025/10","3231","Usluge telefona, interneta, pošte i prijevoza","FAKULTET PROMETNIH ZNANOSTI"]
[{"v":167,"d":"167."},"DSD-LINZ AUSTRIA DR.STEFFAN DATENTECHNIK",null,"SALZBURGERSTRASSE 1/III, Linz",{"v":1420,"d":"1,420.00"},"EUR","2025/10","3213","Stručno usavršavanje zaposlenika","FAKULTET PROMETNIH ZNANOSTI"]
[{"v":168,"d":"168."},"SPIRALA OBRT, VL. MIROSLAV BREGEŠ","GDPR","GDPR",{"v":812.5,"d":"812.50"},"EUR","2025/10","4225","Instrumenti i uređaji","FAKULTET PROMETNIH ZNANOSTI"]
[{"v":169,"d":"169."},"ZRAČNA LUKA OSIJEK OSIJEK AIRPORT","48188420009","P.P.47,, Osijek",20.88,"EUR","2025/10","3235","Zakupnine i najamnine","FAKULTET PROMETNIH ZNANOSTI"]
[{"v":170,"d":"170."},"ZRAČNA LUKA PULA D.O.O. LIŽNJAN","51946493681","VALTURSKO POLJE 210 P.P.89,, Pula",{"v":560,"d":"560.00"},"EUR","2025/10","3235","Zakupnine i najamnine","FAKULTET PROMETNIH ZNANOSTI"]
[{"v":171,"d":"171."},"KMD, OBRT ZA USLUGE, VL. VLADIMIR KRIŽAN","GDPR","GDPR",{"v":540,"d":"540.00"},"EUR","2025/10","3232","Usluge tekućeg i investicijskog održavanja","FAKULTET PROMETNIH ZNANOSTI"]
[{"v":172,"d":"172."},"PRIMEDIA, OBRT ZA RAČUNALNE I POSLOVNE USLUGE","GDPR","GDPR",{"v":1500,"d":"1,500.00"},"EUR","2025/10","3238","Računalne usluge","FAKULTET PROMETNIH ZNANOSTI"]
[{"v":173,"d":"173."},"ZAGREBAČKI HODLING d.o.o. PODRUŽNICA ČISTOĆA","85584865987","RADNIČKA CESTA 82,, Zagreb",900.06,"EUR","2025/10","3234","Komunalne usluge","FAKULTET PROMETNIH ZNANOSTI"]
[{"v":174,"d":"174."},"CENTRAL - VOD ZAPREŠIĆ D.O.O.","90257324426","TRG ŽRTAVA FAŠIZMA 3, ZAPREŠIĆ",{"v":748,"d":"748.00"},"EUR","2025/10","3224","Materijal i dijelovi za tekuće i investicijsko održavanje","FAKULTET PROMETNIH ZNANOSTI"]
[{"v":175,"d":"175."},"REFUNDACIJA ZAPOSLENICI","n.p.","n.p.",74.32,"EUR","2025/10","3295","Pristojbe i naknade","FAKULTET PROMETNIH ZNANOSTI"]
[{"v":176,"d":"176."},"ROAD ASSESSMENT SERVICES LTD. LILY HILL HOUSE",null,"LILY HILL ROAD, BRACKNELL",{"v":10761.76,"d":"10,761.76"},"EUR","2025/10","3237","Intelektualne i osobne usluge","FAKULTET PROMETNIH ZNANOSTI"]
[{"v":177,"d":"177."},"RESTORAN\"TINGUL\"","78987495900","SOLINSKA 84, SPLIT",{"v":68.3,"d":"68.30"},"EUR","2025/10","3293","Reprezentacija","FAKULTET PROMETNIH ZNANOSTI"]
[{"v":178,"d":"178."},"SMIT-COMMERCE D.O.O.","95243482140","GORNJOSTUPNIČKA 9B,, Gornji Stupnik",18.46,"EUR","2025/10","3224","Materijal i dijelovi za tekuće i investicijsko održavanje","FAKULTET PROMETNIH ZNANOSTI"]
[{"v":179,"d":"179."},"ŽILINSKA UNIVERZITA V ŽILINE","n.p.","UNIVERZITNA 1,, 01026 Žilina",{"v":984,"d":"984.00"},"EUR","2025/10","3213","Stručno usavršavanje zaposlenika","FAKULTET PROMETNIH ZNANOSTI"]
[{"v":180,"d":"180."},"OFFERTISIMA D.O.O.","00643859701","AVENIJA DUBRAVA 82,, Zagreb",{"v":10.3,"d":"10.30"},"EUR","2025/10","3221","Uredski materijal i ostali materijalni rashodi","FAKULTET PROMETNIH ZNANOSTI"]
[{"v":181,"d":"181."},"ZRAČNA LUKA DUBROVNIK","63145279942",",, DUBROVNIK",147.13,"EUR","2025/10","3235","Zakupnine i najamnine","FAKULTET PROMETNIH ZNANOSTI"]
[{"v":182,"d":"182."},"REFUNDACIJA ZAPOSLENICI","n.p.","n.p.",143.06,"EUR","2025/10","3223","Energija","FAKULTET PROMETNIH ZNANOSTI"]
[{"v":183,"d":"183."},"REFUNDACIJA ZAPOSLENICI","n.p.","n.p.",37.58,"EUR","2025/10","3292","Premije osiguranja","FAKULTET PROMETNIH ZNANOSTI"]
[{"v":184,"d":"184."},"HETZNER ONLINE AG","n.p.",",, Germany",75.73,"EUR","2025/10","3221","Uredski materijal i ostali materijalni rashodi","FAKULTET PROMETNIH ZNANOSTI"]
[{"v":185,"d":"185."},"STILLERTEC","n.p.","SCHWABENGASSE 1, SCHWADORF",{"v":7920,"d":"7,920.00"},"EUR","2025/10","4225","Instrumenti i uređaji","FAKULTET PROMETNIH ZNANOSTI"]
[{"v":186,"d":"186."},"VERYON","n.p.","548 MARKET ST, SUITE #42403, SAN FRANCISCO",17.22,"EUR","2025/10","3295","Pristojbe i naknade","FAKULTET PROMETNIH ZNANOSTI"]
[{"v":187,"d":"187."},"DOM ZDRAVLJA ZAGREB-CENTAR","00053084642","RUNJANINOVA 4,, Zagreb",{"v":230,"d":"230.00"},"EUR","2025/10","3236","Zdravstvene i veterinarske usluge","FAKULTET PROMETNIH ZNANOSTI"]
[{"v":188,"d":"188."},"IN TIME D.O.O.","18458216879","VELIKA CESTA 78,, Zagreb-Novi Zagreb",228.13,"EUR","2025/10","3295","Pristojbe i naknade","FAKULTET PROMETNIH ZNANOSTI"]
[{"v":189,"d":"189."},"A1 HRVATSKA D.O.O.","29524210204","VRTNI PUT 1,, Zagreb",17.28,"EUR","2025/10","3231","Usluge telefona, interneta, pošte i prijevoza","FAKULTET PROMETNIH ZNANOSTI"]
[{"v":190,"d":"190."},"TELECARE D.O.O.","35315379989","BREZJE SAMOBORSKO, SIGET  I/25, Sveta Nedjelja",58.06,"EUR","2025/10","3232","Usluge tekućeg i investicijskog održavanja","FAKULTET PROMETNIH ZNANOSTI"]
[{"v":191,"d":"191."},"LESNINA D.O.O.","36998794856","SLAVONSKA AVENIJA 106,, Zagreb",{"v":153.9,"d":"153.90"},"EUR","2025/10","4221","Uredska oprema i namještaj","FAKULTET PROMETNIH ZNANOSTI"]
[{"v":192,"d":"192."},"DRAIN SOLUTIONS D.O.O","41182376196","II. ZAGORSKA ULICA 12, ZAGREB",{"v":2642.5,"d":"2,642.50"},"EUR","2025/10","3232","Usluge tekućeg i investicijskog održavanja","FAKULTET PROMETNIH ZNANOSTI"]
[{"v":193,"d":"193."},"INFOMAR D.O.O. ZA INFORMATIČKI INŽENJERING I POSLOVNE USLUGE","47828243632","II RAVNICE 37,, Zagreb",962.24,"EUR","2025/10","3238","Računalne usluge","FAKULTET PROMETNIH ZNANOSTI"]
[{"$f":"ROW(A194)","v":{"v":194,"d":"194."}},"JURČEC ALATI D.O.O.","51172510950","AI. GREGORIĆA 31, PRIGORJE BRDOVEČKO",{"v":3025.7,"d":"3,025.70"},"EUR","2025/10","4223","Oprema za održavanje i zaštitu","FAKULTET PROMETNIH ZNANOSTI"]
[{"v":195,"d":"195."},"KONTO D.O.O","59143170280","ZRINSKA 46, POŽEGA",{"v":1400,"d":"1,400.00"},"EUR","2025/10","3238","Računalne usluge","FAKULTET PROMETNIH ZNANOSTI"]
[{"v":196,"d":"196."},"TELEMACH HRVATSKA D.O.O.","70133616033","JOSIPA MAROHNIĆA 1, ZAGREB",774.12,"EUR","2025/10","3231","Usluge telefona, interneta, pošte i prijevoza","FAKULTET PROMETNIH ZNANOSTI"]
[{"v":197,"d":"197."},"TEMPORIS SAVJETOVANJE D.O.O.","80885983918","KUTNJAČKI PUT 2A,, Zagreb",{"v":310,"d":"310.00"},"EUR","2025/10","3213","Stručno usavršavanje zaposlenika","FAKULTET PROMETNIH ZNANOSTI"]
[{"v":198,"d":"198."},"ČISTOĆA ZADAR","84923155727","S.RADIĆA 33,, Zadar",17.59,"EUR","2025/10","3234","Komunalne usluge","FAKULTET PROMETNIH ZNANOSTI"]
[{"v":199,"d":"199."},"ACQUISITUM MAGNUM D.O.O. ZA TRGOVINU I USLUGE","89836623071","PRILAZ VLADISLAVA BRAJKOVIĆA 4, Zagreb",446.99,"EUR","2025/10","3221","Uredski materijal i ostali materijalni rashodi","FAKULTET PROMETNIH ZNANOSTI"]
[{"v":200,"d":"200."},"FILOZOFSKI FAKULTET","90633715804","IVANA LUČIĆA 3,, Zagreb",{"v":100,"d":"100.00"},"EUR","2025/10","3213","Stručno usavršavanje zaposlenika","FAKULTET PROMETNIH ZNANOSTI"]
[{"v":201,"d":"201."},"REFUNDACIJA ZAPOSLENICI","n.p.","n.p.",{"v":20,"d":"20.00"},"EUR","2025/10","3294","Članarine i norme","FAKULTET PROMETNIH ZNANOSTI"]
[{"v":202,"d":"202."},"ANA PAVELIĆ TREMAC","GDPR","GDPR",126.91,"EUR","2025/10","3237","Intelektualne i osobne usluge","FAKULTET PROMETNIH ZNANOSTI"]
[{"v":203,"d":"203."},"ANTE BARUN","GDPR","GDPR",131.86,"EUR","2025/10","3237","Intelektualne i osobne usluge","FAKULTET PROMETNIH ZNANOSTI"]
[{"v":204,"d":"204."},"AURORA VALINČIĆ","GDPR","GDPR",130.16,"EUR","2025/10","3237","Intelektualne i osobne usluge","FAKULTET PROMETNIH ZNANOSTI"]
[{"v":205,"d":"205."},"Babić Dario","GDPR","GDPR",{"v":4210,"d":"4,210.00"},"EUR","2025/10","3237","Intelektualne i osobne usluge","FAKULTET PROMETNIH ZNANOSTI"]
[{"v":206,"d":"206."},"Babić Darko","GDPR","GDPR",{"v":7367.5,"d":"7,367.50"},"EUR","2025/10","3237","Intelektualne i osobne usluge","FAKULTET PROMETNIH ZNANOSTI"]
[{"v":207,"d":"207."},"BABOJELIĆ KARLO","GDPR","GDPR",{"v":1000,"d":"1,000.00"},"EUR","2025/10","3237","Intelektualne i osobne usluge","FAKULTET PROMETNIH ZNANOSTI"]
[{"v":208,"d":"208."},"BOSILJKA DOLEŽAL","GDPR","GDPR",131.86,"EUR","2025/10","3237","Intelektualne i osobne usluge","FAKULTET PROMETNIH ZNANOSTI"]
[{"v":209,"d":"209."},"BOŽE RADOŠ","GDPR","GDPR",126.91,"EUR","2025/10","3237","Intelektualne i osobne usluge","FAKULTET PROMETNIH ZNANOSTI"]
[{"v":210,"d":"210."},"BRAČIĆ  MATIJA","GDPR","GDPR",{"v":3900,"d":"3,900.00"},"EUR","2025/10","3237","Intelektualne i osobne usluge","FAKULTET PROMETNIH ZNANOSTI"]
[{"v":211,"d":"211."},"CVITIĆ IVAN","GDPR","GDPR",{"v":1493.13,"d":"1,493.13"},"EUR","2025/10","3237","Intelektualne i osobne usluge","FAKULTET PROMETNIH ZNANOSTI"]
[{"v":212,"d":"212."},"DAMIR HAS","GDPR","GDPR",126.91,"EUR","2025/10","3237","Intelektualne i osobne usluge","FAKULTET PROMETNIH ZNANOSTI"]
[{"v":213,"d":"213."},"Fiolić Mario","GDPR","GDPR",{"v":5262.5,"d":"5,262.50"},"EUR","2025/10","3237","Intelektualne i osobne usluge","FAKULTET PROMETNIH ZNANOSTI"]
[{"v":214,"d":"214."},"FRANKOVIĆ LUCIJA","GDPR","GDPR",{"v":1578.75,"d":"1,578.75"},"EUR","2025/10","3237","Intelektualne i osobne usluge","FAKULTET PROMETNIH ZNANOSTI"]
[{"v":215,"d":"215."},"GORAN KOS","GDPR","GDPR",187.68,"EUR","2025/10","3237","Intelektualne i osobne usluge","FAKULTET PROMETNIH ZNANOSTI"]
[{"v":216,"d":"216."},"INES DODIG","GDPR","GDPR",126.91,"EUR","2025/10","3237","Intelektualne i osobne usluge","FAKULTET PROMETNIH ZNANOSTI"]
[{"v":217,"d":"217."},"JOZEFINA GRUBIĆ","GDPR","GDPR",126.91,"EUR","2025/10","3237","Intelektualne i osobne usluge","FAKULTET PROMETNIH ZNANOSTI"]
[{"v":218,"d":"218."},"JURAJ KOSTELAC","GDPR","GDPR",128.51,"EUR","2025/10","3237","Intelektualne i osobne usluge","FAKULTET PROMETNIH ZNANOSTI"]
[{"v":219,"d":"219."},"KREŠIMIR STIPANOVIĆ","GDPR","GDPR",131.86,"EUR","2025/10","3237","Intelektualne i osobne usluge","FAKULTET PROMETNIH ZNANOSTI"]
[{"v":220,"d":"220."},"MARA MOSTARAC","GDPR","GDPR",131.86,"EUR","2025/10","3237","Intelektualne i osobne usluge","FAKULTET PROMETNIH ZNANOSTI"]
[{"v":221,"d":"221."},"MARIJA BOŠNJAK","GDPR","GDPR",129.33,"EUR","2025/10","3237","Intelektualne i osobne usluge","FAKULTET PROMETNIH ZNANOSTI"]
[{"v":222,"d":"222."},"MARIJA ŽEPINA","GDPR","GDPR",126.91,"EUR","2025/10","3237","Intelektualne i osobne usluge","FAKULTET PROMETNIH ZNANOSTI"]
[{"v":223,"d":"223."},"MIROSLAV VUJAKLIJA","GDPR","GDPR",126.91,"EUR","2025/10","3237","Intelektualne i osobne usluge","FAKULTET PROMETNIH ZNANOSTI"]
[{"v":224,"d":"224."},"NEVENKA PERICA","GDPR","GDPR",131.86,"EUR","2025/10","3237","Intelektualne i osobne usluge","FAKULTET PROMETNIH ZNANOSTI"]
[{"v":225,"d":"225."},"Novačko Luka","GDPR","GDPR",{"v":1000,"d":"1,000.00"},"EUR","2025/10","3237","Intelektualne i osobne usluge","FAKULTET PROMETNIH ZNANOSTI"]
[{"v":226,"d":"226."},"PERAKOVIĆ DRAGAN","GDPR","GDPR",{"v":1493.13,"d":"1,493.13"},"EUR","2025/10","3237","Intelektualne i osobne usluge","FAKULTET PROMETNIH ZNANOSTI"]
[{"v":227,"d":"227."},"PETAR JOLIĆ","GDPR","GDPR",131.86,"EUR","2025/10","3237","Intelektualne i osobne usluge","FAKULTET PROMETNIH ZNANOSTI"]
[{"v":228,"d":"228."},"SANJA SMILJANIĆ GRUBIŠIĆ","GDPR","GDPR",775.61,"EUR","2025/10","3237","Intelektualne i osobne usluge","FAKULTET PROMETNIH ZNANOSTI"]
[{"v":229,"d":"229."},"SANJA ŽIVKO","GDPR","GDPR",131.86,"EUR","2025/10","3237","Intelektualne i osobne usluge","FAKULTET PROMETNIH ZNANOSTI"]
[{"v":230,"d":"230."},"SELMA MLIVIĆ SRŠAN","GDPR","GDPR",126.91,"EUR","2025/10","3237","Intelektualne i osobne usluge","FAKULTET PROMETNIH ZNANOSTI"]
[{"v":231,"d":"231."},"Sovina Maja","GDPR","GDPR",{"v":3683.75,"d":"3,683.75"},"EUR","2025/10","3237","Intelektualne i osobne usluge","FAKULTET PROMETNIH ZNANOSTI"]
[{"v":232,"d":"232."},"SUZANA ĆURIĆ","GDPR","GDPR",131.86,"EUR","2025/10","3237","Intelektualne i osobne usluge","FAKULTET PROMETNIH ZNANOSTI"]
[{"v":233,"d":"233."},"Šnajder Valentina","GDPR","GDPR",{"v":3683.75,"d":"3,683.75"},"EUR","2025/10","3237","Intelektualne i osobne usluge","FAKULTET PROMETNIH ZNANOSTI"]
[{"v":234,"d":"234."},"VERA PRETEGIANI","GDPR","GDPR",130.16,"EUR","2025/10","3237","Intelektualne i osobne usluge","FAKULTET PROMETNIH ZNANOSTI"]
[{"v":235,"d":"235."},"ZLATKO GABRIĆ","GDPR","GDPR",131.86,"EUR","2025/10","3237","Intelektualne i osobne usluge","FAKULTET PROMETNIH ZNANOSTI"]
[{"v":236,"d":"236."},"ŽELJKA DEMŠE","GDPR","GDPR",126.91,"EUR","2025/10","3237","Intelektualne i osobne usluge","FAKULTET PROMETNIH ZNANOSTI"]
[{"v":237,"d":"237."},"ŽELJKO ŠIMIĆ","GDPR","GDPR",126.91,"EUR","2025/10","3237","Intelektualne i osobne usluge","FAKULTET PROMETNIH ZNANOSTI"]
[{"v":238,"d":"238."},"SPECIJALNA ZAVARIVANJA ČUKMAN D.O.O.","14195538193","JEŽDOVEČKA ULICA 1C, LUČKO",{"v":50,"d":"50.00"},"EUR","2025/10","3232","Usluge tekućeg i investicijskog održavanja","FAKULTET PROMETNIH ZNANOSTI"]
[{"v":239,"d":"239."},"EURO-DIJAMANT D.O.O.","21142433552","BJELOVARSKA 92, DUGO SELO",{"v":350,"d":"350.00"},"EUR","2025/10","3235","Zakupnine i najamnine","FAKULTET PROMETNIH ZNANOSTI"]
[{"v":240,"d":"240."},"SVEUČILIŠTE U SPLITU POMORSKI FAKULTET","24624257529","RUĐERA BOŠKOVIĆA 37,, Split",{"v":581.8,"d":"581.80"},"EUR","2025/10","3241","Naknade troškova osobama izvan radnog odnosa","FAKULTET PROMETNIH ZNANOSTI"]
[{"v":241,"d":"241."},"HRVATSKE AUTOCESTE D.O.O.","57500462912","ŠIROLINA 4,, Zagreb",49.78,"EUR","2025/10","3295","Pristojbe i naknade","FAKULTET PROMETNIH ZNANOSTI"]
[{"v":242,"d":"242."},"HRT HRVATSKA RADIO TELEVIZIJA","68419124305","PRISAVLJE 3,, Zagreb",{"v":53.1,"d":"53.10"},"EUR","2025/10","3231","Usluge telefona, interneta, pošte i prijevoza","FAKULTET PROMETNIH ZNANOSTI"]
[{"v":243,"d":"243."},"AERODROM BRAČ","98642404972","HRVATSKIH VELIKANA BB,, Supetar",63.15,"EUR","2025/10","3235","Zakupnine i najamnine","FAKULTET PROMETNIH ZNANOSTI"]
[]
["UKUPNO:",{"$nulls":3},{"$f":"SUBTOTAL(9,E7:E250)","v":{"v":1638981.9700000002,"d":"1,638,981.97"}}]
[]
["Napomena: podatak o iznosu isplate na kontu \"3237 Intelektualne i osobne usluge\", osim neto iznosa (i PDV-a ukoliko je osoba obveznik PDV-a) koji je isplaćen fizičkoj osobi, sadržava uplaćeni porez na dohodak te doprinose za mirovinsko i obvezno zdravstveno osiguranje."]

{"sheet":"Sheet2","index":1,"n_rows":0,"n_cols":0,"rows_kept":0}